[Event "Early-Titled-Tuesday-Blitz-May-28-2024"]
[Site "Chess.com"]
[Date "2024.05.28"]
[Round "6"]
[White "Herzog2012"]
[Black "ViktoriyaTarasova"]
[Result "0-1"]
[WhiteElo "2578"]
[BlackElo "2378"]
[TimeControl "180+1"]
[EndTime "9:07:10 PDT"]
[Termination "ViktoriyaTarasova won by checkmate"]

1. e4 {[%clk 0:03:00.9]} 1... e5 {[%clk 0:02:59.9]} 2. Nc3 {[%clk 0:03:00.2]}
2... Nf6 {[%clk 0:02:59.4]} 3. g3 {[%clk 0:03:00.4]} 3... Bc5 {[%clk 0:02:57.9]}
4. Bg2 {[%clk 0:02:58.4]} 4... Nc6 {[%clk 0:02:58.1]} 5. Nge2 {[%clk 0:02:57.8]}
5... O-O {[%clk 0:02:58.3]} 6. O-O {[%clk 0:02:55.3]} 6... a6 {[%clk 0:02:58.4]}
7. h3 {[%clk 0:02:49.7]} 7... d6 {[%clk 0:02:58.7]} 8. Kh2 {[%clk 0:02:49.7]}
8... b5 {[%clk 0:02:58.1]} 9. f4 {[%clk 0:02:44.1]} 9... b4 {[%clk 0:02:52]} 10.
Nd5 {[%clk 0:02:28.7]} 10... Nxd5 {[%clk 0:02:51.3]} 11. exd5 {[%clk 0:02:29.6]}
11... Nd4 {[%clk 0:02:51]} 12. fxe5 {[%clk 0:02:26.4]} 12... dxe5 {[%clk
0:02:48.9]} 13. Nxd4 {[%clk 0:02:10]} 13... Bxd4 {[%clk 0:02:48.9]} 14. c3
{[%clk 0:02:10.5]} 14... Bc5 {[%clk 0:02:45.1]} 15. Qb3 {[%clk 0:01:25.1]} 15...
Rb8 {[%clk 0:02:42.5]} 16. Qc4 {[%clk 0:01:24.8]} 16... Bd6 {[%clk 0:02:41.5]}
17. d4 {[%clk 0:01:24.6]} 17... exd4 {[%clk 0:02:38.9]} 18. Qxd4 {[%clk
0:01:24.5]} 18... bxc3 {[%clk 0:02:37.9]} 19. bxc3 {[%clk 0:01:24.4]} 19... Qe7
{[%clk 0:02:36.9]} 20. Bf4 {[%clk 0:01:23.9]} 20... Bxf4 {[%clk 0:02:04.4]} 21.
Qxf4 {[%clk 0:01:19]} 21... Qc5 {[%clk 0:02:04.2]} 22. Qd4 {[%clk 0:00:57.6]}
22... Qd6 {[%clk 0:00:59]} 23. c4 {[%clk 0:00:52.4]} 23... Bd7 {[%clk
0:00:50.6]} 24. c5 {[%clk 0:00:51.8]} 24... Qh6 {[%clk 0:00:46.5]} 25. c6 {[%clk
0:00:48]} 25... Bc8 {[%clk 0:00:42.6]} 26. Qa7 {[%clk 0:00:46]} 26... Bg4 {[%clk
0:00:36.2]} 27. Qxc7 {[%clk 0:00:43]} 27... Rb2 {[%clk 0:00:36.1]} 28. h4 {[%clk
0:00:22.1]} 28... Qd2 {[%clk 0:00:29.8]} 29. Rg1 {[%clk 0:00:20.9]} 29... Qxd5
{[%clk 0:00:20.7]} 30. Qf4 {[%clk 0:00:10.6]} 30... Bf3 {[%clk 0:00:19.5]} 31.
Kh3 {[%clk 0:00:03.5]} 31... Bxg2+ {[%clk 0:00:19.1]} 32. Kg4 {[%clk 0:00:03.9]}
32... Be4 {[%clk 0:00:18.5]} 33. Kh3 {[%clk 0:00:03.4]} 33... Bg2+ {[%clk
0:00:17.6]} 34. Kg4 {[%clk 0:00:03.4]} 34... h5# {[%clk 0:00:17.7]} 0-1

[Event "Early-Titled-Tuesday-Blitz-May-28-2024"]
[Site "Chess.com"]
[Date "2024.05.28"]
[Round "6"]
[White "hsd2016"]
[Black "SharapovEvgeny"]
[Result "0-1"]
[WhiteElo "2422"]
[BlackElo "2614"]
[TimeControl "180+1"]
[EndTime "9:07:11 PDT"]
[Termination "SharapovEvgeny won by resignation"]

1. Nf3 {[%clk 0:03:00.9]} 1... c5 {[%clk 0:02:59.6]} 2. g3 {[%clk 0:02:58.5]}
2... Nc6 {[%clk 0:02:59.4]} 3. c4 {[%clk 0:02:58.1]} 3... e5 {[%clk 0:02:59.2]}
4. Nc3 {[%clk 0:02:57.1]} 4... g6 {[%clk 0:02:59.3]} 5. e4 {[%clk 0:02:45.5]}
5... Bg7 {[%clk 0:02:59]} 6. Bg2 {[%clk 0:02:43.6]} 6... Nge7 {[%clk 0:02:58.4]}
7. O-O {[%clk 0:02:43.6]} 7... O-O {[%clk 0:02:58.1]} 8. d3 {[%clk 0:02:39.7]}
8... d6 {[%clk 0:02:58.1]} 9. Nd5 {[%clk 0:02:13.1]} 9... Nxd5 {[%clk
0:02:57.8]} 10. cxd5 {[%clk 0:02:10.6]} 10... Nd4 {[%clk 0:02:52.1]} 11. Nxd4
{[%clk 0:02:09.3]} 11... cxd4 {[%clk 0:02:49.5]} 12. f4 {[%clk 0:01:59.6]} 12...
f5 {[%clk 0:02:48.6]} 13. Qb3 {[%clk 0:01:47.8]} 13... Qb6 {[%clk 0:02:48]} 14.
Qa3 {[%clk 0:01:46.9]} 14... fxe4 {[%clk 0:02:44.8]} 15. Bxe4 {[%clk 0:01:44.4]}
15... Bh3 {[%clk 0:02:36.4]} 16. Rf2 {[%clk 0:01:41.3]} 16... Rac8 {[%clk
0:02:24.3]} 17. Bd2 {[%clk 0:01:39.4]} 17... Bh6 {[%clk 0:01:41.9]} 18. Ba5
{[%clk 0:00:45.3]} 18... Qa6 {[%clk 0:01:40.9]} 19. Bb4 {[%clk 0:00:32.4]} 19...
Qxa3 {[%clk 0:01:39]} 20. Bxa3 {[%clk 0:00:28.8]} 20... exf4 {[%clk 0:01:38.7]}
21. Bxd6 {[%clk 0:00:29]} 21... fxg3 {[%clk 0:01:37.7]} 22. Rxf8+ {[%clk
0:00:26.2]} 22... Bxf8 {[%clk 0:01:36.5]} 23. Bxg3 {[%clk 0:00:25.3]} 23... Rc2
{[%clk 0:01:26.2]} 24. Bf2 {[%clk 0:00:08]} 24... Bd6 {[%clk 0:01:19.5]} 25. Bg2
{[%clk 0:00:06.1]} 25... Bxg2 {[%clk 0:01:13.3]} 26. Kxg2 {[%clk 0:00:07]} 26...
Rxb2 {[%clk 0:01:10.5]} 27. Rc1 {[%clk 0:00:06.5]} 27... Rxa2 {[%clk 0:01:07.9]}
28. Rc8+ {[%clk 0:00:06.1]} 28... Kf7 {[%clk 0:01:07.5]} 29. Rd8 {[%clk
0:00:05.2]} 29... Ke7 {[%clk 0:01:06.7]} 30. Rh8 {[%clk 0:00:05]} 30... b5
{[%clk 0:01:04.7]} 31. Rxh7+ {[%clk 0:00:05]} 31... Kf6 {[%clk 0:01:02]} 32. Kf3
{[%clk 0:00:04.6]} 32... Ke5 {[%clk 0:00:58.6]} 33. Bg3+ {[%clk 0:00:02.9]}
33... Kxd5 {[%clk 0:00:58.6]} 34. Rd7 {[%clk 0:00:03.5]} 34... Kc5 {[%clk
0:00:59.2]} 35. Bxd6+ {[%clk 0:00:02.9]} 35... Kc6 {[%clk 0:00:59]} 36. Rd8
{[%clk 0:00:03.5]} 36... a5 {[%clk 0:00:58.5]} 37. Bg3 {[%clk 0:00:03.3]} 37...
b4 {[%clk 0:00:57.7]} 38. Ke4 {[%clk 0:00:04]} 38... b3 {[%clk 0:00:57.6]} 39.
Kxd4 {[%clk 0:00:03.7]} 39... b2 {[%clk 0:00:55.6]} 40. Rb8 {[%clk 0:00:04]}
40... a4 {[%clk 0:00:55.4]} 41. Kc3 {[%clk 0:00:03.9]} 41... a3 {[%clk
0:00:55.6]} 42. Kc2 {[%clk 0:00:02.9]} 42... Ra1 {[%clk 0:00:55.5]} 43. Bf4
{[%clk 0:00:03]} 43... Kd5 {[%clk 0:00:52.4]} 44. Bd2 {[%clk 0:00:02.7]} 44...
Rh1 {[%clk 0:00:48.2]} 45. Bf4 {[%clk 0:00:02.3]} 45... a2 {[%clk 0:00:45.7]}
46. Ra8 {[%clk 0:00:01.1]} 46... b1=Q+ {[%clk 0:00:45.1]} 0-1

[Event "Early-Titled-Tuesday-Blitz-May-28-2024"]
[Site "Chess.com"]
[Date "2024.05.28"]
[Round "6"]
[White "frenchpin"]
[Black "sammartin99"]
[Result "1-0"]
[WhiteElo "2411"]
[BlackElo "2284"]
[TimeControl "180+1"]
[EndTime "9:07:16 PDT"]
[Termination "frenchpin won on time"]

1. Nf3 {[%clk 0:03:00.9]} 1... d5 {[%clk 0:02:57.8]} 2. b3 {[%clk 0:02:57.9]}
2... Nf6 {[%clk 0:02:56.7]} 3. e3 {[%clk 0:02:56.5]} 3... Bg4 {[%clk 0:02:56.6]}
4. Bb2 {[%clk 0:02:51.3]} 4... Nbd7 {[%clk 0:02:55.9]} 5. d4 {[%clk 0:02:50.1]}
5... c6 {[%clk 0:02:54.3]} 6. Nbd2 {[%clk 0:02:47.5]} 6... e6 {[%clk 0:02:52.6]}
7. h3 {[%clk 0:02:47.4]} 7... Bh5 {[%clk 0:02:51.4]} 8. Bd3 {[%clk 0:02:47.2]}
8... a5 {[%clk 0:02:47.3]} 9. a3 {[%clk 0:02:38.9]} 9... Be7 {[%clk 0:02:44.6]}
10. O-O {[%clk 0:02:35.8]} 10... Bg6 {[%clk 0:02:39.9]} 11. Bxg6 {[%clk
0:02:23.2]} 11... hxg6 {[%clk 0:02:40.8]} 12. Ne5 {[%clk 0:02:22.9]} 12... Nxe5
{[%clk 0:02:38.7]} 13. dxe5 {[%clk 0:02:22.1]} 13... Nd7 {[%clk 0:02:39.5]} 14.
c4 {[%clk 0:02:15.5]} 14... Qb8 {[%clk 0:02:35.7]} 15. cxd5 {[%clk 0:02:10.3]}
15... cxd5 {[%clk 0:02:36.6]} 16. Nf3 {[%clk 0:02:06.4]} 16... Nc5 {[%clk
0:02:35.3]} 17. Rc1 {[%clk 0:02:01.9]} 17... O-O {[%clk 0:02:30.3]} 18. Bd4
{[%clk 0:01:42.9]} 18... Ne4 {[%clk 0:02:13.6]} 19. a4 {[%clk 0:01:19.5]} 19...
b5 {[%clk 0:02:01.3]} 20. Nd2 {[%clk 0:01:15.3]} 20... Nxd2 {[%clk 0:00:48.1]}
21. Qxd2 {[%clk 0:01:16.2]} 21... bxa4 {[%clk 0:00:26]} 22. bxa4 {[%clk
0:01:12.8]} 22... Qb3 {[%clk 0:00:22.4]} 23. Rc7 {[%clk 0:01:02.7]} 23... Bb4
{[%clk 0:00:17.9]} 24. Qd1 {[%clk 0:00:58.2]} 24... Qa3 {[%clk 0:00:13.1]} 25.
Qc2 {[%clk 0:00:53.1]} 25... Be7 {[%clk 0:00:05.2]} 26. Ra1 {[%clk 0:00:39.6]}
26... Qb4 {[%clk 0:00:05]} 27. Rb1 {[%clk 0:00:39.7]} 27... Qa3 {[%clk
0:00:04.7]} 28. Rb3 {[%clk 0:00:36.2]} 28... Qxa4 {[%clk 0:00:04.4]} 29. Rxe7
{[%clk 0:00:34.4]} 29... Rfc8 {[%clk 0:00:03]} 30. Qb1 {[%clk 0:00:23.3]} 30...
Qc4 {[%clk 0:00:02]} 31. Rbb7 {[%clk 0:00:20.4]} 31... Rf8 {[%clk 0:00:01]} 32.
Qa1 {[%clk 0:00:14.1]} 32... a4 {[%clk 0:00:01]} 33. Ra7 {[%clk 0:00:14.1]}
33... Rxa7 {[%clk 0:00:01]} 34. Rxa7 {[%clk 0:00:14.6]} 1-0

[Event "Early-Titled-Tuesday-Blitz-May-28-2024"]
[Site "Chess.com"]
[Date "2024.05.28"]
[Round "6"]
[White "HouseOfDurin"]
[Black "MdChess1734"]
[Result "1-0"]
[WhiteElo "2264"]
[BlackElo "2409"]
[TimeControl "180+1"]
[EndTime "9:07:17 PDT"]
[Termination "HouseOfDurin won on time"]

1. d4 {[%clk 0:03:00.9]} 1... Nf6 {[%clk 0:02:56.2]} 2. Bg5 {[%clk 0:03:01.2]}
2... c5 {[%clk 0:02:55.6]} 3. Bxf6 {[%clk 0:03:00.9]} 3... gxf6 {[%clk
0:02:54.8]} 4. c3 {[%clk 0:03:01.5]} 4... Qb6 {[%clk 0:02:53.8]} 5. Qc2 {[%clk
0:03:00.9]} 5... d5 {[%clk 0:02:46.2]} 6. e3 {[%clk 0:02:58.8]} 6... Nc6 {[%clk
0:02:46]} 7. Nd2 {[%clk 0:02:56.8]} 7... Bd7 {[%clk 0:02:34.8]} 8. Ngf3 {[%clk
0:02:52.4]} 8... Rc8 {[%clk 0:02:33.9]} 9. Qb3 {[%clk 0:02:50.9]} 9... f5 {[%clk
0:02:21.6]} 10. Qxd5 {[%clk 0:02:26.1]} 10... Qxb2 {[%clk 0:02:16.2]} 11. Rb1
{[%clk 0:02:26.1]} 11... Qxc3 {[%clk 0:02:14.1]} 12. Rxb7 {[%clk 0:02:25.1]}
12... Qc1+ {[%clk 0:01:26.9]} 13. Ke2 {[%clk 0:02:24.6]} 13... Nb8 {[%clk
0:00:31.2]} 14. Ne5 {[%clk 0:01:46.3]} 14... Be6 {[%clk 0:00:14.8]} 15. Rxb8
{[%clk 0:01:45.8]} 15... Rxb8 {[%clk 0:00:13.6]} 16. Qc6+ {[%clk 0:01:45.4]}
16... Kd8 {[%clk 0:00:13.9]} 17. d5 {[%clk 0:01:22.7]} 17... Rc8 {[%clk
0:00:11.6]} 18. Qb7 {[%clk 0:01:07.1]} 18... Rc7 {[%clk 0:00:02.7]} 19. Nc6+
{[%clk 0:00:49.4]} 19... Kd7 {[%clk 0:00:01.6]} 20. dxe6+ {[%clk 0:00:48.2]}
20... Kd6 {[%clk 0:00:01.9]} 21. Qb3 {[%clk 0:00:21.2]} 21... Rxc6 {[%clk
0:00:02.3]} 22. Nc4+ {[%clk 0:00:20.2]} 22... Kc7 {[%clk 0:00:02.9]} 23. g3
{[%clk 0:00:16]} 23... Bg7 {[%clk 0:00:03.1]} 24. Bg2 {[%clk 0:00:14.1]} 24...
Rb8 {[%clk 0:00:02.5]} 25. Qxb8+ {[%clk 0:00:12.5]} 25... Kxb8 {[%clk
0:00:02.6]} 26. Rxc1 {[%clk 0:00:12.8]} 26... Rxe6 {[%clk 0:00:03.3]} 27. Bd5
{[%clk 0:00:09.4]} 27... Ra6 {[%clk 0:00:03.1]} 28. Nb2 {[%clk 0:00:07.9]} 28...
e6 {[%clk 0:00:02.7]} 29. Bc4 {[%clk 0:00:07]} 29... Rb6 {[%clk 0:00:00.9]} 30.
Nd3 {[%clk 0:00:06.5]} 1-0

[Event "Early-Titled-Tuesday-Blitz-May-28-2024"]
[Site "Chess.com"]
[Date "2024.05.28"]
[Round "6"]
[White "SoCalJuniorChess"]
[Black "Peng_Li-Min"]
[Result "0-1"]
[WhiteElo "2242"]
[BlackElo "2762"]
[TimeControl "180+1"]
[EndTime "9:07:18 PDT"]
[Termination "Peng_Li-Min won by resignation"]

1. d4 {[%clk 0:03:00.9]} 1... Nf6 {[%clk 0:02:58.9]} 2. Nc3 {[%clk 0:03:00.7]}
2... d5 {[%clk 0:02:58.8]} 3. Bf4 {[%clk 0:03:00.3]} 3... e6 {[%clk 0:02:58.8]}
4. Nb5 {[%clk 0:02:59.5]} 4... Na6 {[%clk 0:02:59.5]} 5. e3 {[%clk 0:02:58.8]}
5... Be7 {[%clk 0:03:00.1]} 6. Nf3 {[%clk 0:02:55.3]} 6... O-O {[%clk 0:03:01]}
7. h3 {[%clk 0:02:54.5]} 7... c6 {[%clk 0:02:59.6]} 8. Nc3 {[%clk 0:02:53.8]}
8... Qa5 {[%clk 0:03:00.5]} 9. Be2 {[%clk 0:02:46.2]} 9... Ba3 {[%clk
0:02:59.9]} 10. bxa3 {[%clk 0:02:32.9]} 10... Qxc3+ {[%clk 0:02:59.8]} 11. Nd2
{[%clk 0:02:31.8]} 11... Ne4 {[%clk 0:02:57.9]} 12. Rb1 {[%clk 0:02:20.2]} 12...
Nxd2 {[%clk 0:02:48.8]} 13. Qxd2 {[%clk 0:02:21.1]} 13... Qxa3 {[%clk 0:02:49]}
14. O-O {[%clk 0:02:17.8]} 14... b5 {[%clk 0:02:44.1]} 15. Bd3 {[%clk
0:02:06.1]} 15... Nb8 {[%clk 0:02:07]} 16. Qe2 {[%clk 0:01:52.7]} 16... Nd7
{[%clk 0:02:02.6]} 17. e4 {[%clk 0:01:45.1]} 17... a6 {[%clk 0:01:55.1]} 18. e5
{[%clk 0:01:44.7]} 18... Qe7 {[%clk 0:01:52.6]} 19. Bd2 {[%clk 0:01:42.4]} 19...
f5 {[%clk 0:01:47.1]} 20. exf6 {[%clk 0:01:35.1]} 20... Qxf6 {[%clk 0:01:43.6]}
21. Rbe1 {[%clk 0:01:29.9]} 21... Nb6 {[%clk 0:01:13.6]} 22. Bb4 {[%clk
0:01:29.2]} 22... Rf7 {[%clk 0:01:13.9]} 23. Bc5 {[%clk 0:01:28.9]} 23... Na4
{[%clk 0:01:10.9]} 24. Bd6 {[%clk 0:01:26.6]} 24... Qxd4 {[%clk 0:01:07]} 25.
Qh5 {[%clk 0:01:22]} 25... g6 {[%clk 0:01:06.5]} 26. Bxg6 {[%clk 0:01:19.3]}
26... hxg6 {[%clk 0:01:07.4]} 27. Qxg6+ {[%clk 0:01:19.8]} 27... Qg7 {[%clk
0:01:07.7]} 28. Qh5 {[%clk 0:01:16.4]} 28... Bd7 {[%clk 0:00:58.2]} 29. Re3
{[%clk 0:01:16.2]} 29... Rf5 {[%clk 0:00:58.5]} 30. Qh4 {[%clk 0:01:12.9]} 30...
Rg5 {[%clk 0:00:57.1]} 31. Be7 {[%clk 0:01:02.3]} 31... Rg6 {[%clk 0:00:41.9]}
32. Rfe1 {[%clk 0:00:50.3]} 32... Re8 {[%clk 0:00:39.1]} 33. Bd6 {[%clk
0:00:48.7]} 33... Qh7 {[%clk 0:00:36.6]} 34. Qd4 {[%clk 0:00:42.2]} 34... c5
{[%clk 0:00:35.8]} 35. Qe5 {[%clk 0:00:39.9]} 35... Nb6 {[%clk 0:00:31.9]} 36.
Rg3 {[%clk 0:00:36.6]} 36... Nc4 {[%clk 0:00:31]} 37. Qf4 {[%clk 0:00:28.5]}
37... Nxd6 {[%clk 0:00:24.3]} 38. Qxd6 {[%clk 0:00:29]} 38... Rxg3 {[%clk
0:00:25]} 39. fxg3 {[%clk 0:00:27]} 39... Qe7 {[%clk 0:00:20.6]} 40. Qf4 {[%clk
0:00:23.8]} 40... Rf8 {[%clk 0:00:20.1]} 41. Qg4+ {[%clk 0:00:24.2]} 41... Qg7
{[%clk 0:00:20.7]} 42. Qh4 {[%clk 0:00:23.6]} 42... Qd4+ {[%clk 0:00:20.6]} 43.
Qxd4 {[%clk 0:00:20.2]} 43... cxd4 {[%clk 0:00:21.5]} 44. Rd1 {[%clk 0:00:20.9]}
44... e5 {[%clk 0:00:21.7]} 45. c3 {[%clk 0:00:18.9]} 45... dxc3 {[%clk
0:00:20]} 46. Rxd5 {[%clk 0:00:19.1]} 46... Rc8 {[%clk 0:00:20.1]} 0-1

[Event "Early-Titled-Tuesday-Blitz-May-28-2024"]
[Site "Chess.com"]
[Date "2024.05.28"]
[Round "6"]
[White "Glidzhian_Gor"]
[Black "Tol_Tol"]
[Result "1-0"]
[WhiteElo "2553"]
[BlackElo "2380"]
[TimeControl "180+1"]
[EndTime "9:07:19 PDT"]
[Termination "Glidzhian_Gor won on time"]

1. e4 {[%clk 0:02:55.5]} 1... c5 {[%clk 0:02:59.9]} 2. d4 {[%clk 0:02:54.5]}
2... cxd4 {[%clk 0:02:59.9]} 3. c3 {[%clk 0:02:55]} 3... Nf6 {[%clk 0:02:59.1]}
4. e5 {[%clk 0:02:54.5]} 4... Nd5 {[%clk 0:02:59.8]} 5. Nf3 {[%clk 0:02:55.4]}
5... Nc6 {[%clk 0:03:00.2]} 6. cxd4 {[%clk 0:02:55.3]} 6... g6 {[%clk
0:02:59.8]} 7. Nc3 {[%clk 0:02:55.9]} 7... Nxc3 {[%clk 0:03:00.1]} 8. bxc3
{[%clk 0:02:56.8]} 8... Bg7 {[%clk 0:03:00.8]} 9. h4 {[%clk 0:02:54.8]} 9... d6
{[%clk 0:02:59.9]} 10. exd6 {[%clk 0:02:53.7]} 10... Qxd6 {[%clk 0:02:59.6]} 11.
h5 {[%clk 0:02:54.6]} 11... Bg4 {[%clk 0:02:59.2]} 12. h6 {[%clk 0:02:54]} 12...
Bf6 {[%clk 0:02:59.3]} 13. Be2 {[%clk 0:02:54]} 13... O-O {[%clk 0:02:58]} 14.
O-O {[%clk 0:02:53.1]} 14... Rac8 {[%clk 0:02:56.4]} 15. a4 {[%clk 0:02:52.2]}
15... Rfd8 {[%clk 0:02:44.6]} 16. Ng5 {[%clk 0:02:24]} 16... Bxe2 {[%clk
0:02:37.6]} 17. Qxe2 {[%clk 0:02:24.9]} 17... Na5 {[%clk 0:02:36.6]} 18. Ne4
{[%clk 0:02:19.7]} 18... Qc6 {[%clk 0:02:25.9]} 19. Rb1 {[%clk 0:01:29.5]} 19...
b6 {[%clk 0:02:18.1]} 20. Re1 {[%clk 0:01:20.4]} 20... Rd7 {[%clk 0:01:51.8]}
21. Bf4 {[%clk 0:01:11.7]} 21... Nc4 {[%clk 0:01:44.7]} 22. Nxf6+ {[%clk
0:01:09.3]} 22... Qxf6 {[%clk 0:01:43.2]} 23. Qg4 {[%clk 0:01:09.1]} 23... Qf5
{[%clk 0:01:34.4]} 24. Qg3 {[%clk 0:00:40.5]} 24... a6 {[%clk 0:00:54.2]} 25.
Bg5 {[%clk 0:00:25.7]} 25... f6 {[%clk 0:00:54]} 26. Bf4 {[%clk 0:00:23.4]}
26... g5 {[%clk 0:00:26.9]} 27. Be3 {[%clk 0:00:22.9]} 27... Kf7 {[%clk
0:00:21.8]} 28. Rbd1 {[%clk 0:00:21.8]} 28... Qd5 {[%clk 0:00:16.8]} 29. Bc1
{[%clk 0:00:21.6]} 29... Kg6 {[%clk 0:00:15.3]} 30. Qh3 {[%clk 0:00:21.3]} 30...
Qf5 {[%clk 0:00:13.5]} 31. Qh2 {[%clk 0:00:20.2]} 31... Nd6 {[%clk 0:00:06.2]}
32. Re3 {[%clk 0:00:19]} 32... Ne4 {[%clk 0:00:03.9]} 33. Rf3 {[%clk 0:00:19.2]}
33... Qg4 {[%clk 0:00:02.2]} 34. Bd2 {[%clk 0:00:16.4]} 34... f5 {[%clk
0:00:01]} 35. Be1 {[%clk 0:00:15.4]} 1-0

[Event "Early-Titled-Tuesday-Blitz-May-28-2024"]
[Site "Chess.com"]
[Date "2024.05.28"]
[Round "6"]
[White "Felix-Rose"]
[Black "FLYD"]
[Result "1-0"]
[WhiteElo "2301"]
[BlackElo "2040"]
[TimeControl "180+1"]
[EndTime "9:07:21 PDT"]
[Termination "Felix-Rose won on time"]

1. e4 {[%clk 0:03:00.9]} 1... c6 {[%clk 0:02:59.9]} 2. d4 {[%clk 0:03:00.3]}
2... d5 {[%clk 0:02:59.8]} 3. e5 {[%clk 0:03:00.8]} 3... c5 {[%clk 0:03:00]} 4.
dxc5 {[%clk 0:03:00.1]} 4... e6 {[%clk 0:03:00.4]} 5. a3 {[%clk 0:02:59.9]} 5...
Bxc5 {[%clk 0:03:00.2]} 6. Nf3 {[%clk 0:03:00.2]} 6... Nd7 {[%clk 0:02:56]} 7.
b4 {[%clk 0:02:57.6]} 7... Be7 {[%clk 0:02:55.6]} 8. Bb2 {[%clk 0:02:56.8]} 8...
Nh6 {[%clk 0:02:54.8]} 9. Bd3 {[%clk 0:02:51.6]} 9... O-O {[%clk 0:02:54.2]} 10.
O-O {[%clk 0:02:51.8]} 10... f6 {[%clk 0:02:53.8]} 11. c4 {[%clk 0:02:49.8]}
11... fxe5 {[%clk 0:02:32.1]} 12. Nxe5 {[%clk 0:02:49.5]} 12... Bf6 {[%clk
0:02:23]} 13. Qe2 {[%clk 0:02:48.4]} 13... Nf7 {[%clk 0:02:19.1]} 14. Nxd7
{[%clk 0:02:31.7]} 14... Bxd7 {[%clk 0:02:14.2]} 15. cxd5 {[%clk 0:02:25.4]}
15... exd5 {[%clk 0:02:12.8]} 16. Nc3 {[%clk 0:02:05.4]} 16... d4 {[%clk
0:01:23.1]} 17. Nd5 {[%clk 0:01:42.3]} 17... Bc6 {[%clk 0:01:14.7]} 18. Qe4
{[%clk 0:01:28]} 18... Ng5 {[%clk 0:00:38.2]} 19. Nxf6+ {[%clk 0:01:14.4]} 19...
Qxf6 {[%clk 0:00:33.3]} 20. Qxd4 {[%clk 0:01:11.6]} 20... Qxd4 {[%clk
0:00:12.7]} 21. Bxd4 {[%clk 0:01:11]} 21... Rad8 {[%clk 0:00:13.4]} 22. Bc4+
{[%clk 0:01:10.7]} 22... Kh8 {[%clk 0:00:13.2]} 23. Bxa7 {[%clk 0:01:05.6]}
23... Rf4 {[%clk 0:00:11.7]} 24. Rad1 {[%clk 0:00:47.4]} 24... Rdf8 {[%clk
0:00:08.3]} 25. Bd5 {[%clk 0:00:44.6]} 25... Bb5 {[%clk 0:00:06.8]} 26. Be3
{[%clk 0:00:39.1]} 26... R4f5 {[%clk 0:00:05.2]} 27. Rfe1 {[%clk 0:00:35.9]}
27... Bd7 {[%clk 0:00:02.9]} 28. Bxg5 {[%clk 0:00:30.7]} 28... Rxg5 {[%clk
0:00:03.1]} 29. Re7 {[%clk 0:00:30.4]} 29... Bh3 {[%clk 0:00:02.8]} 30. Bxb7
{[%clk 0:00:27]} 30... Rg6 {[%clk 0:00:01.6]} 31. a4 {[%clk 0:00:22.2]} 31... h6
{[%clk 0:00:01.4]} 32. a5 {[%clk 0:00:22]} 32... Rg5 {[%clk 0:00:01.7]} 33. a6
{[%clk 0:00:20.6]} 33... Rf6 {[%clk 0:00:02.1]} 34. a7 {[%clk 0:00:19]} 34...
Bxg2 {[%clk 0:00:02.6]} 35. Bxg2 {[%clk 0:00:17.1]} 35... Rfg6 {[%clk
0:00:02.8]} 36. a8=Q+ {[%clk 0:00:17.6]} 36... Kh7 {[%clk 0:00:03.4]} 37. Rd8
{[%clk 0:00:17.1]} 37... Rxg2+ {[%clk 0:00:03.2]} 38. Qxg2 {[%clk 0:00:17.4]}
38... Rxg2+ {[%clk 0:00:04]} 39. Kxg2 {[%clk 0:00:18.3]} 1-0